Workbook

Sheet Sheet1
A1: 十一、评审结果一览表
A2: 招标单位：江苏省凌洋农业发展有限公司 | D2: 最高限价 | H2: 526.6 | I2: 万元 | J2: 评标办法： | L2: 贰
A3: 工程名称：2019年凌洋公司土壤提质工程项目二标段 | D3: 有效报价平均价（评标基准价）： | H3: 438.82 | I3: 万元
A4: 序号 | B4: 投 标 单 位 | C4: 资格审查 | D4: 商 务 标 | I4: 技 术 标（60分） | L4: 资格审查
D5: 投 标 报 价
C6: 基本分 | D6: 40分
C7: 合计得分 | D7: 投标报价 (万元) | E7: 比评标基准价±% | F7: 扣分比例 | G7: 减分 | H7: 该项得分 | I7: 有机肥产品得分(40分) | J7: 企业履约能力 (20分) | L7: 通过 | M7: 未通过
I8: 得分 | J8: 得分
A9: 1 | B9: 南通尔康生物有机肥有限公司 | C9: =H9+I9+J9+K9 -> 70.48 | D9: 484.8 | E9: =(D9-H3)/H3*100 -> 10.48 | G9: =E9*1.5 -> 15.72 | H9: =40-G9 -> 24.28 | I9: 26.20 | J9: 20.00 | L9: √
A10: 2 | B10: 广东恒丰生物科技有限公司 | C10: 23.90 | D10: 506.98 | E10: =(D10-$H$3)/$H$3*100 -> 15.53 | G10: =E10*1.5 -> 23.30 | H10: =40-G10 -> 16.70 | I10: 7.20 | J10: 0.00 | L10: √
A11: 3 | B11: 宿迁远大生物工程发展有限公司 | C11: 83.80 | D11: 432.66 | E11: =(D11-$H$3)/$H$3*100 -> -1.40 | G11: =E11*-1 -> 1.40 | H11: 38.60 | I11: 27.00 | J11: 18.20 | L11: √
A12: 4 | B12: 江苏沃绿宝生物科技有限公司 | C12: 51.42 | D12: 514.822 | E12: =(D12-$H$3)/$H$3*100 -> 17.32 | G12: =E12*1.5 -> 25.98 | H12: 14.02 | I12: 19.60 | J12: 17.80 | L12: √
A13: 5 | B13: 淮安大华生物科技有限公司 | C13: 44.78 | D13: 505.575 | E13: 15.21 | G13: =E13*1.5 -> 22.82 | H13: 17.18 | I13: 13.00 | J13: 14.60 | L13: √
A14: 6 | B14: 江苏农丰宝生物科技有限公司 | C14: 72.98 | D14: 486.27 | E14: 10.81 | G14: =E14*1.5 -> 16.22 | H14: 23.78 | I14: 34.80 | J14: 14.40 | L14: √
A15: 7 | B15: 江苏生久农化有限公司 | C15: 84.87 | D15: 430.332 | E15: -1.93 | G15: =E15*-1 -> 1.93 | H15: 38.07 | I15: 28.80 | J15: 18.00 | L15: √
A16: 8 | B16: 标优美生态工程股份有限公司 | C16: 46.36 | D16: 515 | E16: 17.36 | G16: =E16*1.5 -> 26.04 | H16: 13.96 | I16: 16.00 | J16: 8.20 | K16: 8.20 | L16: √
A17: 9 | B17: 南通惠农生物有机肥有限公司 | C17: 77.09 | D17: 444.98 | E17: 1.40 | G17: =E17*1.5 -> 2.11 | H17: 37.89 | I17: 20.00 | J17: 19.20 | L17: √
A18: 根据本工程评标办法， 江苏生久农化有限公司 为中标候选人单位。

Sheet Sheet2

Sheet Sheet3
